[Event "55th Iranian-ch Men Final 2022"]
[Site "Iran"]
[Date "2022.06.15"]
[Round "1.1"]
[White "Daghli, Arash"]
[Black "Mosadeghpour, Masoud"]
[Result "1/2-1/2"]
[ECO "A47"]
[WhiteElo "2441"]
[BlackElo "2474"]
[Annotator "TA"]
[PlyCount "20"]
[EventDate "2022.06.15"]
[EventType "tourn"]
[EventCountry "IRI"]
[SourceTitle "playchess.com"]
[Source "ChessBase"]
[SourceQuality "1"]
[TimeControl "40/5400+30:1800+30"]

{[%evp 9,20,0,29,28,13,15,16,3,3,4,15,-6,-7]} 1. d4 {[%emt 0:00:03]} Nf6 {[%emt 0:02:54]} 2. Nf3 {[%emt 0:00:16]} e6 {[%emt 0:00:48]} 3. Bf4 {[%emt 0:03:44]} b6 {[%emt 0:05:07]} 4. e3 {[%emt 0:00:25]} Bb7 {[%emt 0:01:12]} 5. Nbd2 {[%emt 0:00:59]} Bd6 {[%emt 0:02:29]} 6. Bxd6 {[%emt 0:02:55] A47: 1 d4 Nf6 2 Nf3 b6: Torre, London and Colle Systems.} cxd6 {[%emt 0:00:12]} 7. Bd3 {[%emt 0:00:19] The position is equal.} d5 {[%emt 0:01:19] [#] Inhibits e4.} 8. a4 $146 {[%emt 0:03:24]} ({Predecessor:} 8. Qe2 O-O 9. h4 Qc8 10. g4 Ba6 11. g5 Ne4 12. h5 d6 13. g6 fxg6 14. hxg6 {1-0 (47) Thorsbro,P (2192)-Fries Nielsen,J (2370) Fredericia 2022}) 8... Nc6 {[%emt 0:03:16]} 9. c3 {[%emt 1:22:55]} d6 {[%emt 0:08:04]} 10. Qe2 {[%emt 0:00:00]} e5 {[%emt 0:10:06] Not much happened in this game.  Weighted Error Value: White=0.07 (flawless) /Black=0.10 (very precise)} 1/2-1/2

[Event "55th Iranian-ch Men Final 2022"]
[Site "Iran"]
[Date "2022.06.15"]
[Round "1.2"]
[White "Poormosavi, Seyed Kian"]
[Black "Daneshvar, Bardiya"]
[Result "0-1"]
[ECO "B11"]
[WhiteElo "2358"]
[BlackElo "2486"]
[Annotator "TA"]
[PlyCount "116"]
[EventDate "2022.06.15"]
[EventType "tourn"]
[EventCountry "IRI"]
[SourceTitle "playchess.com"]
[Source "ChessBase"]
[SourceQuality "1"]
[TimeControl "40/5400+30:1800+30"]

{[%evp 11,116,21,12,13,7,10,11,8,16,23,30,-45,-16,-6,-11,-68,-52,-70,-78,-74,-74,-101,-22,-32,-28,-33,-27,-18,-16,-69,-63,-47,-31,-50,-42,-41,-47,-45,-46,-50,-41,-40,-50,-48,-43,-52,0,0,0,0,0,-16,-9,-52,-66,-66,-64,-80,-14,-28,-19,-64,-48,-54,-56,-74,-85,-244,-310,-189,-199,-202,-191,-315,-384,-374,-371,-317,-291,-375,-358,-394,-390,-381,-321,-373,-364,-690,-750,-5488,-5744,-1633,-855,-741,-677,-29969,-29969,-29973,-29975,-29955,-29956,-29974,-29980,-29980,-29981,-29977,-29969]} 1. e4 {[%emt 0:00:19]} c6 {[%emt 0:00:04]} 2. Nf3 {[%emt 0:00:16]} d5 {[%emt 0:00:08]} 3. Nc3 {[%emt 0:00:07]} Bg4 {[%emt 0:00:10]} 4. h3 {[%emt 0:00:08]} Bxf3 {[%emt 0:00:04]} 5. Qxf3 {[%emt 0:00:10]} e6 {[%emt 0:00:07]} 6. d4 {[%emt 0:00:11]} Nf6 {[%emt 0:00:20]} 7. exd5 {[%emt 0:00:02] B11: Caro-Kann: Two Knights Variation.} cxd5 {[%emt 0:00:15]} 8. Bd3 {[%emt 0:00:07]} Nc6 {[%emt 0:01:25][%cal Bb8c6,Bc6b4,Bb4c2][%mdl 32]} 9. Ne2 {[%emt 0:00:02] The position is equal.} Nb4 {[%emt 0:03:32]} 10. Bb5+ {[%emt 0:00:14]} Nd7 {[%emt 0:01:16] [#]} 11. O-O $146 {[%emt 0:08:57]} (11. Ba4 $11) ({Predecessor:} 11. Ba4 b5 12. Bb3 Nc6 13. c3 Bd6 14. O-O Qf6 15. Qd3 Rb8 16. f4 g6 17. g4 {0-1 (50) Iglesias Ferreira,A (2146)-Buendia Pinar,A (2295) La Roda 2022}) 11... Nxc2 $15 {[%emt 0:18:52]} 12. Rb1 {[%emt 0:01:18] a3 is the strong threat.} Nb4 $1 {[%emt 0:03:49]} 13. a3 {[%emt 0:06:59]} (13. Qg3 $1 $11) 13... Nc6 {[%emt 0:02:06]} 14. Qg3 {[%emt 0:00:13]} Nf6 {[%emt 0:07:16][%cal Bd7f6,Bf6e4,Be4d6,Bd6f7][%mdl 32]} 15. Bf4 {[%emt 0:05:56]} Ne4 {[%emt 0:03:26]} 16. Qg4 {[%emt 0:05:05]} f5 {[%emt 0:05:36]} (16... Rc8 $17) 17. Qf3 {[%emt 0:02:00]} Be7 {[%emt 0:04:38]} 18. Qe3 {[%emt 0:07:22]} Kf7 {[%emt 0:01:12]} 19. Bxc6 {[%emt 0:15:14]} bxc6 {[%emt 0:00:06]} 20. f3 {[%emt 0:00:26]} (20. b4 $11) 20... Nd6 {[%emt 0:02:25] Black is more active.} 21. b3 {[%emt 0:05:54]} Rc8 {[%emt 0:03:14]} 22. Be5 {[%emt 0:03:35]} Bg5 {[%emt 0:03:25]} 23. Nf4 {[%emt 0:07:49][%cal Oh3h4]} Re8 {[%emt 0:03:05]} 24. Qf2 {[%emt 0:06:32]} Kg8 {[%emt 0:03:47]} 25. Nd3 $1 {[%emt 0:09:11]} Nf7 {[%emt 0:00:30]} 26. f4 {[%emt 0:02:31]} Be7 {[%emt 0:00:14]} 27. b4 {[%emt 0:03:45]} Qb6 {[%emt 0:02:23]} 28. Rfc1 {[%emt 0:04:04]} Qb5 {[%emt 0:02:23]} (28... a5 $15) 29. Nc5 {[%emt 0:02:00]} Nxe5 {[%emt 0:01:01]} 30. fxe5 {[%emt 0:00:46]} Bxc5 {[%emt 0:03:20]} 31. Rxc5 {[%emt 0:01:09]} Qd3 {[%emt 0:02:44][%csl LRa3,LRb1]} 32. Rbc1 {[%emt 0:00:22]} Qxa3 {[%emt 0:01:17]} 33. b5 {[%emt 0:00:05]} Rc7 {[%emt 0:01:17]} 34. Qd2 {[%emt 0:01:35]} Rf8 {[%emt 0:03:08]} ({Better is} 34... Rb7 $17 35. bxc6 Rc7) 35. Rxc6 $11 {[%emt 0:00:52]} Re7 {[%emt 0:02:23]} 36. Rc8 {[%emt 0:01:09]} Ref7 {[%emt 0:02:08][%cal Be7f7,Bf7f8,Bf8b8][%mdl 32]} 37. Rxf8+ {[%emt 0:01:19]} Rxf8 $15 {[%emt 0:00:05][%mdl 4096] Endgame KQR-KQR} 38. Kh1 {[%emt 0:01:46]} f4 {[%emt 0:01:06]} 39. Qc3 {[%emt 0:00:30] [#] This costs White the game.} (39. Rc3 $17 Qb4 40. Qd3) 39... Qxc3 $19 {[%emt 0:00:00]} 40. Rxc3 {[%emt 0:00:00] KR-KR} Rb8 {[%emt 0:16:13]} 41. Rc5 {[%emt 0:04:52]} Kf7 {[%emt 0:00:00] Strongly threatening ...h5.} 42. g3 {[%emt 0:12:45]} (42. Kg1 {is the only way for White.}) 42... fxg3 {[%emt 0:00:00]} 43. Kg2 {[%emt 0:00:09]} Kg6 {[%emt 0:00:00]} 44. Kxg3 {[%emt 0:00:31]} Kf5 {[%emt 0:00:00]} 45. Rc7 {[%emt 0:01:04]} Ke4 {[%emt 0:00:00]} 46. Re7 {[%emt 0:02:19]} Rxb5 {[%emt 0:01:10]} 47. Rxe6 {[%emt 0:00:25]} Rb7 {[%emt 0:00:16] Prevents Re7.} 48. Re8 {[%emt 0:02:31]} Kxd4 {[%emt 0:32:34] And now ...Ke3 would win.} 49. Kf4 {[%emt 0:00:12]} (49. Kf2) 49... Rf7+ {[%emt 0:00:00]} 50. Kg5 {[%emt 0:10:42]} Ke4 {[%emt 0:01:00]} 51. e6 {[%emt 0:00:00]} Rf5+ {[%emt 0:00:00]} 52. Kg4 {[%emt 0:00:00]} Rf6 {[%emt 0:00:00]} 53. h4 {[%emt 0:00:00]} d4 {[%emt 0:00:00][%cal Bd5d4,Bd4d3,Bd3d2][%mdl 32] Black mates.} 54. Re7 {[%emt 0:00:00]} d3 {[%emt 0:00:00]} 55. Rxg7 {[%emt 0:00:00]} Rxe6 {[%emt 0:00:00]} 56. Rxh7 {[%emt 0:00:00]} d2 {[%emt 0:00:00]} 57. Rd7 {[%emt 0:00:00] [#]} Ke3 $1 {[%emt 0:00:00]} 58. Kf5 {[%emt 0:00:00]} Re8 {[%emt 0:00:00] Weighted Error Value: White=0.51/Black=0.18 (very precise)} 0-1

[Event "55th Iranian-ch Men Final 2022"]
[Site "Iran"]
[Date "2022.06.15"]
[Round "1.3"]
[White "Naderi, Abdollah"]
[Black "Khamisi, S Jafar"]
[Result "1-0"]
[ECO "C65"]
[WhiteElo "2050"]
[BlackElo "2118"]
[Annotator "NA RC"]
[PlyCount "81"]
[EventDate "2022.06.15"]
[EventType "tourn"]
[EventCountry "IRI"]
[SourceTitle "playchess.com"]
[Source "ChessBase"]
[SourceQuality "1"]
[TimeControl "40/5400+30:1800+30"]

1. e4 {[%emt 0:02:40]} e5 {[%emt 0:00:19]} 2. Nf3 {[%emt 0:00:28]} Nc6 {[%emt 0:00:27]} 3. Bb5 {[%emt 0:01:13]} Nf6 {[%emt 0:01:08]} 4. d3 {[%emt 0:01:57]} Bc5 {[%emt 0:00:17]} 5. Bxc6 {[%emt 0:00:59]} dxc6 {[%emt 0:00:08]} 6. O-O {[%emt 0:00:10]} Nd7 {[%emt 0:02:21]} 7. Nbd2 {[%emt 0:01:38]} O-O {[%emt 0:00:31]} 8. Nc4 {[%emt 0:04:05]} Re8 {[%emt 0:01:26]} 9. c3 {[%emt 0:06:12]} f6 {[%emt 0:09:20]} 10. b4 {[%emt 0:06:09]} Bf8 {[%emt 0:00:37]} 11. Be3 {[%emt 0:07:31]} Nb6 {[%emt 0:24:19]} 12. Na5 {[%emt 0:05:12]} Rb8 {[%emt 0:00:25]} 13. h3 {[%emt 0:03:57]} Be6 {[%emt 0:00:25]} 14. Re1 {[%emt 0:06:02]} Qd7 {[%emt 0:02:38]} 15. d4 {[%emt 0:10:42]} exd4 {[%emt 0:02:57]} 16. Bxd4 {[%emt 0:02:01]} Qf7 {[%emt 0:10:09]} 17. e5 {[%emt 0:15:26]} f5 {[%emt 0:04:08]} 18. Ng5 {[%emt 0:02:40]} Qg6 {[%emt 0:00:11]} 19. Nxe6 {[%emt 0:00:20]} Qxe6 {[%emt 0:00:35]} 20. Qb3 {[%emt 0:03:22]} Qxb3 {[%emt 0:28:16]} 21. axb3 {[%emt 0:03:53]} Kf7 {[%emt 0:00:42]} 22. Nc4 {[%emt 0:01:40]} Nxc4 {[%emt 0:01:03]} 23. bxc4 {[%emt 0:00:02]} a6 {[%emt 0:00:34]} 24. f4 {[%emt 0:00:48]} Ke6 {[%emt 0:01:23]} 25. Kf2 {[%emt 0:00:38]} Rbd8 {[%emt 0:05:04]} 26. Ke3 {[%emt 0:02:37]} Rd7 {[%emt 0:01:33]} 27. g4 {[%emt 0:01:13]} Be7 {[%emt 0:01:01]} 28. Rg1 {[%emt 0:01:11]} Bd8 {[%emt 0:01:51]} 29. Rg2 {[%emt 0:02:37]} Rf8 {[%emt 0:00:40]} 30. Rag1 {[%emt 0:02:29]} Rff7 {[%emt 0:00:21]} 31. h4 {[%emt 0:01:23]} fxg4 {[%emt 0:00:32]} 32. Rxg4 {[%emt 0:00:15]} g6 {[%emt 0:00:21]} 33. h5 {[%emt 0:00:49]} gxh5 {[%emt 0:00:07]} 34. Rg8 {[%emt 0:00:33]} Kf5 {[%emt 0:00:43]} 35. Re8 {[%emt 0:00:46]} Be7 {[%emt 0:00:19]} 36. Rxe7 {[%emt 0:01:34]} Rdxe7 {[%emt 0:00:24]} 37. Rg5+ {[%emt 0:00:05]} Ke6 {[%emt 0:00:12]} 38. Ke4 {[%emt 0:00:02]} Kd7 {[%emt 0:01:26]} 39. f5 {[%emt 0:00:05]} Ke8 {[%emt 0:00:34]} 40. e6 {[%emt 0:00:00]} Rf8 {[%emt 0:00:00]} 41. Ke5 {[%emt 0:01:03]} 1-0

[Event "55th Iranian-ch Men Final 2022"]
[Site "Iran"]
[Date "2022.06.15"]
[Round "1.4"]
[White "Omidi, Arya"]
[Black "Darini, Pouria"]
[Result "0-1"]
[ECO "B62"]
[WhiteElo "2321"]
[BlackElo "2431"]
[Annotator "TA"]
[PlyCount "70"]
[EventDate "2022.06.15"]
[EventType "tourn"]
[EventCountry "IRI"]
[SourceTitle "playchess.com"]
[Source "ChessBase"]
[SourceQuality "1"]
[TimeControl "40/5400+30:1800+30"]

{[%evp 12,70,30,15,31,30,30,34,35,33,46,35,40,35,38,39,35,31,32,30,37,31,22,0,0,-52,-36,-85,-82,-89,-66,-91,-90,-77,-117,-137,-133,-150,-139,-166,-158,-163,-156,-236,-234,-227,-194,-222,-162,-590,-592,-579,-525,-552,-376,-1250,-1239,-2550,-2400,-29990,-29991]} 1. e4 {[%emt 0:00:03]} c5 {[%emt 0:00:19]} 2. Nf3 {[%emt 0:00:07][%cal Bg1f3,Bf3d4,Bd4b5][%mdl 32]} Nc6 {[%emt 0:00:21]} 3. d4 {[%emt 0:00:18]} cxd4 {[%emt 0:00:07]} 4. Nxd4 {[%emt 0:00:02]} Nf6 {[%emt 0:00:11]} 5. Nc3 {[%emt 0:00:03]} d6 {[%emt 0:00:40]} 6. Bg5 {[%emt 0:00:36]} e6 {[%emt 0:00:14]} 7. Qd3 {[%emt 0:00:37]} Bd7 {[%emt 0:00:48] Nowadays more popular than 7...a6. B62: Sicilian: Richter-Rauzer: 6...e6: Unusual White 7th moves.} 8. Ndb5 {[%emt 0:00:37]} Nb4 {[%emt 0:00:30]} 9. Qd1 {[%emt 0:00:12]} Qb8 {[%emt 0:01:21] White is slightly better.} 10. Bf4 {[%emt 0:00:09][%cal Rb5d6]} e5 {[%emt 0:00:12]} 11. Bg5 {[%emt 0:00:03]} a6 {[%emt 0:00:07]} 12. Bxf6 {[%emt 0:03:57]} gxf6 {[%emt 0:00:12]} 13. Na3 {[%emt 0:00:01]} ({Worse is} 13. a3 Nc6 14. Nd5 axb5 $17) 13... b5 {[%emt 0:00:08] Prevents Nc4.} 14. Nab1 {[%emt 0:01:06]} Bg7 {[%emt 0:00:30] [#]} 15. a3 $146 {[%emt 0:00:50]} ({Predecessor:} 15. g3 O-O 16. a3 Nc6 17. Nd5 Ra7 18. Bg2 f5 19. exf5 Bxf5 20. O-O Kh8 21. Nd2 {0-1 (32) Delchev,A (2500)-Shevchenko,K (2633) Struga 2021}) 15... Nc6 {[%emt 0:00:06]} 16. Nd5 {[%emt 0:02:34]} f5 {[%emt 0:19:25]} 17. exf5 {[%emt 0:04:02]} Bxf5 {[%emt 0:00:53]} 18. Ne3 {[%emt 0:00:44]} (18. Nbc3 $11) 18... Be6 $1 $15 {[%emt 0:06:57][%cal Od6d5] This bishop pair is nice.} 19. Bd3 {[%emt 0:05:10]} (19. Nc3 $1 $15) 19... d5 $17 {[%emt 0:07:59] [#] aiming for ...e4. White is on the road to losing.} 20. Bf5 {[%emt 0:11:52]} e4 {[%emt 0:10:44]} 21. Bxe6 {[%emt 0:20:18]} fxe6 {[%emt 0:00:02]} 22. Qh5+ {[%emt 0:00:07]} Ke7 {[%emt 0:00:18]} 23. c3 {[%emt 0:03:43]} Qe5 {[%emt 0:09:34]} 24. Qh3 {[%emt 0:02:34]} Qf4 {[%emt 0:15:30] Active counter play!} 25. Nd2 {[%emt 0:15:06]} Ne5 {[%emt 0:02:40] And now ...Nd3+ would win.} 26. O-O {[%emt 0:00:56]} Qh6 {[%emt 0:01:25]} 27. Qg3 {[%emt 0:02:41]} (27. Qxh6 $17 Bxh6 28. Rae1) 27... Rhg8 $19 {[%emt 0:03:11]} 28. h3 {[%emt 0:02:23]} Raf8 {[%emt 0:14:09][%cal Ba8f8,Bf8f4,Bf4h4][%mdl 32]} 29. a4 {[%emt 0:02:40]} Nd7 {[%emt 0:01:15] ...Be5 is the strong threat.} 30. h4 $2 {[%emt 0:18:31]} (30. Nxe4 {nothing else works.} dxe4 31. Rfd1) 30... Be5 {[%emt 0:01:50]} 31. Qh3 {[%emt 0:00:23]} Rf4 {[%emt 0:00:19]} 32. h5 {[%emt 0:03:34]} Qg5 {[%emt 0:01:36] White must now prevent ...Rh4.} 33. g3 {[%emt 0:00:28]} (33. Qg3 Qxg3 34. fxg3 Rxf1+ 35. Ndxf1) 33... Rh4 {[%emt 0:00:28]} 34. Qg2 {[%emt 0:00:15] [#]} Bxg3 $1 {[%emt 0:00:24][%mdl 512] ( -> ...Bh2+)} 35. fxg3 {[%emt 0:00:47]} (35. f4 Bh2+) 35... Qxe3+ {[%emt 0:00:07] Weighted Error Value: White=0.83/Black=0.09 (flawless)} 0-1

[Event "55th Iranian-ch Men Final 2022"]
[Site "Iran"]
[Date "2022.06.15"]
[Round "1.5"]
[White "Rastbod, Ali"]
[Black "Atakhan, Abtin"]
[Result "1-0"]
[ECO "D36"]
[WhiteElo "2362"]
[BlackElo "2358"]
[Annotator "TA"]
[PlyCount "40"]
[EventDate "2022.06.15"]
[EventType "tourn"]
[EventCountry "IRI"]
[SourceTitle "playchess.com"]
[Source "ChessBase"]
[SourceQuality "1"]
[TimeControl "40/5400+30:1800+30"]

{[%evp 21,40,0,19,25,35,28,24,10,8,15,70,67,68,73,100,111,134,100,100,103,99]} 1. d4 {[%emt 0:00:03]} d5 {[%emt 0:02:47]} 2. c4 {[%emt 0:00:35]} e6 {[%emt 0:00:26]} 3. Nc3 {[%emt 0:03:02]} Nf6 {[%emt 0:04:11]} 4. cxd5 {[%emt 0:01:52]} exd5 {[%emt 0:00:06]} 5. Bg5 {[%emt 0:00:06]} Be7 {[%emt 0:00:18]} 6. e3 {[%emt 0:00:02]} h6 {[%emt 0:00:06]} 7. Bh4 {[%emt 0:05:50]} O-O {[%emt 0:00:09]} 8. Bd3 {[%emt 0:00:11]} Re8 {[%emt 0:00:12]} 9. Nge2 {[%emt 0:06:23]} Nbd7 {[%emt 0:00:23]} 10. Qc2 {[%emt 0:04:05]} c6 {[%emt 0:00:09]} 11. h3 {[%emt 0:08:54]} Ne4 {[%emt 0:09:08]} 12. Bxe7 {[%emt 0:00:33] D36: Queen's Gambit Declined: Exchange Variation: Main line (5 Bg5 c6 6 Qc2).} Qxe7 {[%emt 0:00:07]} 13. Bxe4 {[%emt 0:07:03]} dxe4 {[%emt 0:00:09]} 14. Ng3 {[%emt 0:00:05] White has an edge.} Nf6 {[%emt 0:00:24]} 15. O-O {[%emt 0:04:24]} c5 {[%emt 0:13:36] [#]} (15... b6 $11) 16. dxc5 $146 {[%emt 0:18:13]} ({Predecessor:} 16. Rfd1 b6 17. Rac1 cxd4 18. Rxd4 Bb7 19. Nf5 Qc7 20. Nd5 Qe5 21. Nxf6+ Qxf6 22. Nd6 {1-0 (62) Verma,A (1908)-Neale,G (1622) Bournemouth 2016}) 16... Qxc5 {[%emt 0:00:49]} 17. Rac1 {[%emt 0:37:39]} Qe7 {[%emt 0:36:11]} 18. Rfd1 {[%emt 0:00:00]} g6 {[%emt 0:07:13]} 19. Ncxe4 {[%emt 0:00:00]} Nxe4 {[%emt 0:00:28]} 20. Qxe4 {[%emt 0:00:00]} Qxe4 {[%emt 0:00:08] Weighted Error Value: White=0.06 (flawless) /Black=0.28 (precise)} 1-0

[Event "55th Iranian-ch Men Final 2022"]
[Site "Iran"]
[Date "2022.06.15"]
[Round "1.6"]
[White "Tahbaz, Arash"]
[Black "Mousavi, Seyed Khalil"]
[Result "0-1"]
[ECO "A66"]
[WhiteElo "2451"]
[BlackElo "2524"]
[Annotator "TA"]
[PlyCount "45"]
[EventDate "2022.06.15"]
[EventType "tourn"]
[EventCountry "IRI"]
[SourceTitle "playchess.com"]
[Source "ChessBase"]
[SourceQuality "1"]
[TimeControl "40/5400+30:1800+30"]

{[%evp 13,45,50,57,-37,-31,-31,-32,-35,-39,-45,-35,-70,0,0,-45,-135,-135,-118,-124,-243,-77,-131,-55,-180,-200,-630,-620,-754,-760,-1184,-1186,-1970,-1925,-2020]} 1. d4 {[%emt 0:00:08]} Nf6 {[%emt 0:00:39]} 2. c4 {[%emt 0:00:15]} e6 {[%emt 0:00:27]} 3. Nc3 {[%emt 0:01:13]} c5 {[%emt 0:02:10]} 4. d5 {[%emt 0:01:47]} exd5 {[%emt 0:01:18]} 5. cxd5 {[%emt 0:00:07]} d6 {[%emt 0:00:42]} 6. e4 {[%emt 0:02:17]} g6 {[%emt 0:00:23]} 7. f4 {[%emt 0:09:31]} Bg7 {[%emt 0:02:14]} 8. e5 {[%emt 0:06:00] A66: Modern Benoni: Mikenas Attack.} (8. Bb5+ $1 $14 Nfd7 9. Nf3) 8... Nfd7 $1 $15 {[%emt 0:11:25]} 9. e6 {[%emt 0:16:49]} fxe6 {[%emt 0:04:35]} 10. dxe6 {[%emt 0:00:25] Black is slightly better.} Nb6 {[%emt 0:01:50]} 11. a4 $1 {[%emt 0:09:48] [#]} a5 $146 {[%emt 0:09:15]} ({Predecessor:} 11... Bxe6 12. a5 Nc8 13. Bb5+ Bd7 14. Bc4 Qh4+ 15. g3 Bxc3+ 16. bxc3 Qf6 17. Ne2 Ne7 {½-½ (24) Roa Alonso,S (2335)-Narciso Dublan,M (2455) Ponferrada 1997}) 12. Qb3 {[%emt 0:13:45] And now Nf3 would win.} Nc6 {[%emt 0:14:39] White must now prevent ...d5.} 13. Nf3 {[%emt 0:00:02][%cal Of4f5]} d5 {[%emt 0:04:47] ...0-0 is the strong threat.} 14. f5 {[%emt 0:06:52]} (14. Be3 $15 Bd4 15. Bxd4 cxd4 16. Ne2) 14... O-O $17 {[%emt 0:03:58] Threatens to win with ...c4.} 15. Bg5 {[%emt 0:01:52] [#]} Bf6 {[%emt 0:02:52]} 16. Bh6 {[%emt 0:19:05]} (16. Be3 $17 {keeps fighting.} Be7 17. fxg6) 16... Re8 $2 {[%emt 0:04:37]} (16... c4 $19 {has better winning chances.} 17. Qb5 Bxc3+ 18. bxc3 Rxf5) 17. O-O-O {[%emt 0:00:36][%cal Rc3d5] [#]} gxf5 {[%emt 0:05:55]} ({Better is} 17... Nb4 $1 $17 18. g4 c4) 18. g4 {[%emt 0:00:08] Now White is beyond hope.} ({White should try} 18. e7 $15 Nxe7 19. Bb5) 18... fxg4 $19 {[%emt 0:03:26]} 19. Ne4 $2 {[%emt 0:02:21]} (19. Nxd5 Bxe6 20. Qxb6 Bxd5 21. Qxd8 Raxd8 22. Rxd5 Rxd5 23. Bc4) 19... Bxe6 {[%emt 0:03:50] Black is clearly winning.} (19... gxf3 20. Nxf6+ Qxf6 21. Rg1+ Kh8 22. Bg7+ Qxg7 23. Rxg7 Kxg7 24. Qxb6 $16) 20. Nfg5 {[%emt 0:04:59]} Nd4 {[%emt 0:04:34]} 21. Qg3 {[%emt 0:00:02]} Bf5 {[%emt 0:02:19]} 22. Bd3 {[%emt 0:02:40]} dxe4 {[%emt 0:01:14]} 23. Nxe4 {[%emt 0:00:04] Weighted Error Value: White=1.06/Black=0.16 (very precise)} 0-1

[Event "55th Iranian-ch Men Final 2022"]
[Site "Iran"]
[Date "2022.06.15"]
[Round "1.7"]
[White "Ashraf, Artin"]
[Black "Ghaem Maghami, Ehsan"]
[Result "1/2-1/2"]
[ECO "E32"]
[WhiteElo "2096"]
[BlackElo "2519"]
[Annotator "TA"]
[PlyCount "40"]
[EventDate "2022.06.15"]
[EventType "tourn"]
[EventCountry "IRI"]
[SourceTitle "playchess.com"]
[Source "ChessBase"]
[SourceQuality "1"]
[TimeControl "40/5400+30:1800+30"]

{[%evp 10,40,24,7,19,29,31,31,39,38,14,20,49,53,69,66,83,73,78,76,95,86,110,103,121,102,147,138,169,166,166,152,177]} 1. d4 {[%emt 0:03:06]} Nf6 {[%emt 0:00:21]} 2. c4 {[%emt 0:00:10]} e6 {[%emt 0:01:43]} 3. Nc3 {[%emt 0:00:13]} Bb4 {[%emt 0:00:36]} 4. Qc2 {[%emt 0:00:06]} d6 {[%emt 0:11:25]} 5. Nf3 {[%emt 0:05:00]} Nbd7 {[%emt 0:02:11]} 6. Bd2 {[%emt 0:05:18]} b6 {[%emt 0:01:56] E32: Nimzo-Indian: Classical (4 Qc2): 4...0-0.} 7. e4 {[%emt 0:05:07]} Bb7 {[%emt 0:14:41]} 8. Bd3 {[%emt 0:06:04]} e5 {[%emt 0:07:11] White is slightly better.} 9. a3 {[%emt 0:09:03]} Bxc3 {[%emt 0:05:16]} 10. Bxc3 {[%emt 0:00:10][%cal Rd4e5]} Qe7 {[%emt 0:00:27][%cal Of6e4]} 11. O-O {[%emt 0:01:46]} Nh5 {[%emt 0:01:51] [#]} 12. Rfe1 $146 {[%emt 0:10:33]} ({Predecessor:} 12. g3 c5 13. d5 g5 14. Bd2 f6 15. b4 Ng7 16. Rfb1 O-O 17. g4 Kf7 18. h3 {½-½ (31) Bergdahl,A-Runstrom,H Sweden 1969}) 12... Nf4 {[%emt 0:05:56][%cal Of7f5] [#]} 13. Bf1 $1 {[%emt 0:00:12]} O-O {[%emt 0:02:35][%cal Of7f5]} 14. d5 {[%emt 0:01:17]} Bc8 {[%emt 0:00:39]} 15. g3 {[%emt 0:05:31]} Nh5 {[%emt 0:05:09]} 16. b4 {[%emt 0:05:04]} g6 {[%emt 0:01:28]} 17. c5 {[%emt 0:05:42]} Ndf6 {[%emt 0:35:35]} 18. Rac1 {[%emt 0:35:08] White is more active. White is clearly better.} Ng4 {[%emt 0:00:30]} 19. h3 {[%emt 0:00:30]} Ngf6 {[%emt 0:00:30]} 20. Bd2 {[%emt 0:00:30]} Ne8 {[%emt 0:00:30] Black did not feel at home in the position after the opening.  Weighted Error Value: White=0.05 (flawless) /Black=0.17 (very precise)} 1/2-1/2